[Event "Titled Tuesday Blitz October 31 Early 2023"]
[White "Zhigalko, Sergei"]
[Black "Rosen, Eric"]
[WhiteFideId "13502956"]
[BlackFideId "2032562"]
[WhiteElo "2948"]
[BlackElo "2677"]
[Result "0-1"]
[Round "7"]
[TimeControl "180+1"]
[Date "2023.10.31"]
[WhiteClock "0:00:06"]
[BlackClock "0:00:11"]
[Board "28"]

1. e4 {[%clk 0:03:00]}  c5 {[%clk 0:03:00]} 2. Nf3 {[%clk 0:03:00]}  e6 {[%clk 0:03:00]} 3. c3 {[%clk 0:03:00]}  d5 {[%clk 0:03:00]} 4. e5 {[%clk 0:02:59]}  d4 {[%clk 0:03:00]} 5. Bd3 {[%clk 0:02:59]}  Nc6 {[%clk 0:03:00]} 6. O-O {[%clk 0:02:59]}  g5 {[%clk 0:02:43]} 7. Bb5 {[%clk 0:02:29]}  g4 {[%clk 0:02:40]} 8. Ne1 {[%clk 0:02:27]}  h5 {[%clk 0:02:38]} 9. cxd4 {[%clk 0:02:01]}  cxd4 {[%clk 0:02:37]} 10. Nd3 {[%clk 0:02:00]}  Bd7 {[%clk 0:02:26]} 11. Re1 {[%clk 0:01:37]}  a6 {[%clk 0:02:15]} 12. Ba4 {[%clk 0:01:37]}  Nh6 {[%clk 0:02:04]} 13. Nf4 {[%clk 0:01:19]}  Nf5 {[%clk 0:02:00]} 14. d3 {[%clk 0:01:18]}  Bg7 {[%clk 0:01:42]} 15. Bxc6 {[%clk 0:01:18]}  Bxc6 {[%clk 0:01:41]} 16. Nd2 {[%clk 0:01:19]}  Qc7 {[%clk 0:01:26]} 17. Nc4 {[%clk 0:01:16]}  b5 {[%clk 0:01:21]} 18. Nd6+ {[%clk 0:01:13]}  Nxd6 {[%clk 0:01:21]} 19. exd6 {[%clk 0:01:14]}  Qxd6 {[%clk 0:01:22]} 20. Bd2 {[%clk 0:01:07]}  Be5 {[%clk 0:00:54]} 21. Rc1 {[%clk 0:01:07]}  Rc8 {[%clk 0:00:49]} 22. Re4 {[%clk 0:00:22]}  f5 {[%clk 0:00:44]} 23. Bb4 {[%clk 0:00:22]}  Qb8 {[%clk 0:00:37]} 24. Qb3 {[%clk 0:00:15]}  Bd7 {[%clk 0:00:26]} 25. Rxc8+ {[%clk 0:00:08]}  Bxc8 {[%clk 0:00:24]} 26. Re1 {[%clk 0:00:04]}  Kf7 {[%clk 0:00:25]} 27. Nd5 {[%clk 0:00:02]}  Bxh2+ {[%clk 0:00:23]} 28. Kh1 {[%clk 0:00:02]}  h4 {[%clk 0:00:22]} 29. Ne7 {[%clk 0:00:01]}  Bd7 {[%clk 0:00:20]} 30. Nxf5 {[%clk 0:00:01]}  Bf4 {[%clk 0:00:12]} 31. Re4 {[%clk 0:00:01]}  h3 {[%clk 0:00:12]} 32. g3 {[%clk 0:00:02]}  Bc7 {[%clk 0:00:04]} 33. Kh2 {[%clk 0:00:02]}  a5 {[%clk 0:00:03]} 34. Nxd4 {[%clk 0:00:02]}  axb4 {[%clk 0:00:02]} 35. Nxe6 {[%clk 0:00:02]}  Kg6 {[%clk 0:00:01]} 36. Nxc7 {[%clk 0:00:02]}  Qxc7 {[%clk 0:00:01]} 37. Qd5 {[%clk 0:00:03]}  Bf5 {[%clk 0:00:02]} 38. Re5 {[%clk 0:00:03]}  Qf7 {[%clk 0:00:02]} 39. Qd6+ {[%clk 0:00:03]}  Kg7 {[%clk 0:00:02]} 40. Qd4 {[%clk 0:00:03]}  Qf6 {[%clk 0:00:03]} 41. Re7+ {[%clk 0:00:03]}  Kg6 {[%clk 0:00:03]} 42. Qe3 {[%clk 0:00:04]}  Rf8 {[%clk 0:00:04]} 43. d4 {[%clk 0:00:04]}  Rf7 {[%clk 0:00:04]} 44. Re8 {[%clk 0:00:04]}  Rf8 {[%clk 0:00:04]} 45. Re7 {[%clk 0:00:04]}  Rf7 {[%clk 0:00:04]} 46. Re8 {[%clk 0:00:05]}  Kg7 {[%clk 0:00:05]} 47. Re5 {[%clk 0:00:03]}  Bg6 {[%clk 0:00:05]} 48. Rg5 {[%clk 0:00:04]}  Qxf2+ {[%clk 0:00:05]} 49. Qxf2 {[%clk 0:00:05]}  Rxf2+ {[%clk 0:00:06]} 50. Kg1 {[%clk 0:00:05]}  Rg2+ {[%clk 0:00:07]} 51. Kh1 {[%clk 0:00:05]}  Rxg3 {[%clk 0:00:07]} 52. a3 {[%clk 0:00:05]}  Kf6 {[%clk 0:00:08]} 53. Rxb5 {[%clk 0:00:04]}  Be4+ {[%clk 0:00:08]} 54. Kh2 {[%clk 0:00:04]}  Rg2+ {[%clk 0:00:09]} 55. Kh1 {[%clk 0:00:05]}  Rxb2+ {[%clk 0:00:09]} 56. Kg1 {[%clk 0:00:05]}  h2+ {[%clk 0:00:10]} 57. Kf1 {[%clk 0:00:06]}  h1=Q# {[%clk 0:00:11]} 0-1


[Site "https://www.chess.com"]

[Event "Titled Tuesday Blitz October 31 Early 2023"]
[White "Rustemov, Alexander"]
[Black "Barrientos, Sergio E"]
[WhiteFideId "4119002"]
[BlackFideId "4401824"]
[WhiteElo "2887"]
[BlackElo "2668"]
[Result "1/2-1/2"]
[Round "7"]
[TimeControl "180+1"]
[Date "2023.10.31"]
[WhiteClock "0:00:06"]
[BlackClock "0:00:17"]
[Board "31"]

1. d4 {[%clk 0:03:00]}  Nf6 {[%clk 0:02:54]} 2. c4 {[%clk 0:03:01]}  g6 {[%clk 0:02:52]} 3. Nf3 {[%clk 0:03:01]}  Bg7 {[%clk 0:02:52]} 4. g3 {[%clk 0:03:02]}  O-O {[%clk 0:02:52]} 5. Bg2 {[%clk 0:03:02]}  c6 {[%clk 0:02:52]} 6. b3 {[%clk 0:02:59]}  d5 {[%clk 0:02:52]} 7. Nbd2 {[%clk 0:03:00]}  a5 {[%clk 0:02:47]} 8. a3 {[%clk 0:02:57]}  Be6 {[%clk 0:02:40]} 9. Qc2 {[%clk 0:02:55]}  Nbd7 {[%clk 0:02:36]} 10. Bb2 {[%clk 0:02:54]}  b5 {[%clk 0:02:32]} 11. O-O {[%clk 0:02:49]}  a4 {[%clk 0:02:30]} 12. cxb5 {[%clk 0:02:44]}  cxb5 {[%clk 0:02:29]} 13. Rfc1 {[%clk 0:02:40]}  Qb8 {[%clk 0:02:19]} 14. Ne1 {[%clk 0:02:26]}  axb3 {[%clk 0:02:09]} 15. Qxb3 {[%clk 0:02:23]}  Rc8 {[%clk 0:01:55]} 16. Rxc8+ {[%clk 0:02:19]}  Qxc8 {[%clk 0:01:56]} 17. Nd3 {[%clk 0:02:19]}  Qa6 {[%clk 0:01:40]} 18. Bc3 {[%clk 0:02:08]}  Ne4 {[%clk 0:01:32]} 19. Nb4 {[%clk 0:01:48]}  Qb7 {[%clk 0:01:19]} 20. e3 {[%clk 0:01:17]}  Nb6 {[%clk 0:01:14]} 21. Nd3 {[%clk 0:00:56]}  Nxd2 {[%clk 0:00:55]} 22. Bxd2 {[%clk 0:00:56]}  Nc4 {[%clk 0:00:55]} 23. Bb4 {[%clk 0:00:55]}  Bf5 {[%clk 0:00:52]} 24. Nf4 {[%clk 0:00:52]}  e6 {[%clk 0:00:48]} 25. h4 {[%clk 0:00:52]}  Bf8 {[%clk 0:00:32]} 26. Bxf8 {[%clk 0:00:51]}  Kxf8 {[%clk 0:00:32]} 27. Qb4+ {[%clk 0:00:47]}  Kg7 {[%clk 0:00:32]} 28. a4 {[%clk 0:00:45]}  Qa6 {[%clk 0:00:27]} 29. a5 {[%clk 0:00:35]}  Qd6 {[%clk 0:00:24]} 30. Qxb5 {[%clk 0:00:33]}  Ra6 {[%clk 0:00:18]} 31. Bf1 {[%clk 0:00:30]}  Ra7 {[%clk 0:00:17]} 32. Bxc4 {[%clk 0:00:27]}  dxc4 {[%clk 0:00:18]} 33. Qxc4 {[%clk 0:00:27]}  Be4 {[%clk 0:00:18]} 34. Qc5 {[%clk 0:00:26]}  Qd7 {[%clk 0:00:17]} 35. a6 {[%clk 0:00:24]}  f6 {[%clk 0:00:16]} 36. Qb6 {[%clk 0:00:19]}  Kf7 {[%clk 0:00:15]} 37. Rc1 {[%clk 0:00:18]}  g5 {[%clk 0:00:14]} 38. hxg5 {[%clk 0:00:17]}  fxg5 {[%clk 0:00:15]} 39. Ne2 {[%clk 0:00:17]}  Kg6 {[%clk 0:00:15]} 40. Nc3 {[%clk 0:00:17]}  Bf3 {[%clk 0:00:15]} 41. Nb5 {[%clk 0:00:16]}  Ra8 {[%clk 0:00:14]} 42. a7 {[%clk 0:00:14]}  Qd5 {[%clk 0:00:14]} 43. Qc5 {[%clk 0:00:09]}  Qe4 {[%clk 0:00:13]} 44. Qe5 {[%clk 0:00:09]}  Qg4 {[%clk 0:00:13]} 45. Kf1 {[%clk 0:00:07]}  Qh3+ {[%clk 0:00:13]} 46. Ke1 {[%clk 0:00:08]}  Qg2 {[%clk 0:00:13]} 47. Qxe6+ {[%clk 0:00:07]}  Kh5 {[%clk 0:00:13]} 48. Qf7+ {[%clk 0:00:07]}  Kg4 {[%clk 0:00:14]} 49. Qe6+ {[%clk 0:00:07]}  Kh5 {[%clk 0:00:14]} 50. Qf7+ {[%clk 0:00:07]}  Kg4 {[%clk 0:00:15]} 51. Qd7+ {[%clk 0:00:07]}  Kh5 {[%clk 0:00:15]} 52. Qxh7+ {[%clk 0:00:07]}  Kg4 {[%clk 0:00:15]} 53. Qd7+ {[%clk 0:00:07]}  Kh5 {[%clk 0:00:16]} 54. Qh7+ {[%clk 0:00:07]}  Kg4 {[%clk 0:00:16]} 55. Qd7+ {[%clk 0:00:07]}  Kh5 {[%clk 0:00:17]} 56. Qh7+ {[%clk 0:00:06]} 1/2-1/2


[Site "https://www.chess.com"]

[Event "Titled Tuesday Blitz October 31 Early 2023"]
[White "Kozak, Antoni"]
[Black "Janaszak, Dawid"]
[WhiteFideId "21832030"]
[BlackFideId "1119206"]
[WhiteElo "2828"]
[BlackElo "2671"]
[Result "1/2-1/2"]
[Round "7"]
[TimeControl "180+1"]
[Date "2023.10.31"]
[WhiteClock "0:00:12"]
[BlackClock "0:00:06"]
[Board "32"]

1. Nf3 {[%clk 0:03:00]}  g6 {[%clk 0:02:59]} 2. g3 {[%clk 0:02:59]}  Bg7 {[%clk 0:02:59]} 3. Bg2 {[%clk 0:03:00]}  Nf6 {[%clk 0:02:59]} 4. O-O {[%clk 0:03:01]}  O-O {[%clk 0:02:59]} 5. b3 {[%clk 0:03:01]}  c5 {[%clk 0:02:57]} 6. Bb2 {[%clk 0:03:01]}  Nc6 {[%clk 0:02:55]} 7. c4 {[%clk 0:03:00]}  d5 {[%clk 0:02:53]} 8. e3 {[%clk 0:02:58]}  d4 {[%clk 0:02:48]} 9. exd4 {[%clk 0:02:58]}  cxd4 {[%clk 0:02:49]} 10. b4 {[%clk 0:02:49]}  Nxb4 {[%clk 0:02:42]} 11. Bxd4 {[%clk 0:02:37]}  Bf5 {[%clk 0:02:37]} 12. Na3 {[%clk 0:02:34]}  Re8 {[%clk 0:02:08]} 13. Qb3 {[%clk 0:02:32]}  Nc6 {[%clk 0:02:02]} 14. Bc3 {[%clk 0:02:31]}  Be4 {[%clk 0:01:52]} 15. Rfe1 {[%clk 0:02:26]}  e5 {[%clk 0:01:48]} 16. Rad1 {[%clk 0:01:55]}  Rb8 {[%clk 0:01:20]} 17. d3 {[%clk 0:01:45]}  Bxf3 {[%clk 0:01:20]} 18. Bxf3 {[%clk 0:01:45]}  Nd4 {[%clk 0:01:21]} 19. Bxd4 {[%clk 0:01:40]}  exd4 {[%clk 0:01:17]} 20. Nc2 {[%clk 0:01:36]}  Nd7 {[%clk 0:01:14]} 21. Qa3 {[%clk 0:01:32]}  Ne5 {[%clk 0:01:14]} 22. Bg2 {[%clk 0:01:31]}  a6 {[%clk 0:01:08]} 23. Re4 {[%clk 0:01:26]}  Nc6 {[%clk 0:01:04]} 24. Qb3 {[%clk 0:01:19]}  Qd7 {[%clk 0:00:56]} 25. Rb1 {[%clk 0:01:17]}  b5 {[%clk 0:00:48]} 26. Rxe8+ {[%clk 0:01:12]}  Qxe8 {[%clk 0:00:48]} 27. Bxc6 {[%clk 0:01:06]}  Qxc6 {[%clk 0:00:48]} 28. Nb4 {[%clk 0:01:04]}  Qc8 {[%clk 0:00:32]} 29. Nd5 {[%clk 0:01:04]}  Qe6 {[%clk 0:00:29]} 30. a4 {[%clk 0:01:01]}  b4 {[%clk 0:00:21]} 31. a5 {[%clk 0:01:01]}  Bf8 {[%clk 0:00:21]} 32. Qa4 {[%clk 0:00:53]}  Qe2 {[%clk 0:00:18]} 33. Nf4 {[%clk 0:00:45]}  Qe5 {[%clk 0:00:17]} 34. Qc6 {[%clk 0:00:31]}  Qxa5 {[%clk 0:00:13]} 35. Nd5 {[%clk 0:00:28]}  b3 {[%clk 0:00:11]} 36. Nf6+ {[%clk 0:00:27]}  Kg7 {[%clk 0:00:12]} 37. Nd7 {[%clk 0:00:27]}  Rd8 {[%clk 0:00:11]} 38. Rxb3 {[%clk 0:00:20]}  Qf5 {[%clk 0:00:11]} 39. Rb7 {[%clk 0:00:18]}  a5 {[%clk 0:00:07]} 40. Kg2 {[%clk 0:00:16]}  h5 {[%clk 0:00:07]} 41. h4 {[%clk 0:00:16]}  g5 {[%clk 0:00:08]} 42. hxg5 {[%clk 0:00:16]}  h4 {[%clk 0:00:08]} 43. gxh4 {[%clk 0:00:16]}  Qg4+ {[%clk 0:00:08]} 44. Kf1 {[%clk 0:00:15]}  Qd1+ {[%clk 0:00:09]} 45. Kg2 {[%clk 0:00:16]}  Qg4+ {[%clk 0:00:09]} 46. Kf1 {[%clk 0:00:12]}  Qd1+ {[%clk 0:00:07]} 47. Kg2 {[%clk 0:00:12]}  Qg4+ {[%clk 0:00:06]} 1/2-1/2


[Site "https://www.chess.com"]

[Event "Titled Tuesday Blitz October 31 Early 2023"]
[White "Sharapov, Evgeny"]
[Black "Komov, Roman"]
[WhiteFideId "14103133"]
[BlackFideId "24175714"]
[WhiteElo "2668"]
[BlackElo "2783"]
[Result "1/2-1/2"]
[Round "7"]
[TimeControl "180+1"]
[Date "2023.10.31"]
[WhiteClock "0:00:17"]
[BlackClock "0:00:02"]
[Board "33"]

1. e4 {[%clk 0:03:00]}  c5 {[%clk 0:03:00]} 2. Nf3 {[%clk 0:02:59]}  d6 {[%clk 0:03:00]} 3. d4 {[%clk 0:03:00]}  cxd4 {[%clk 0:03:01]} 4. Nxd4 {[%clk 0:03:00]}  Nf6 {[%clk 0:03:01]} 5. Nc3 {[%clk 0:03:00]}  Nc6 {[%clk 0:03:02]} 6. g3 {[%clk 0:03:00]}  g6 {[%clk 0:03:01]} 7. Nde2 {[%clk 0:03:00]}  Bg7 {[%clk 0:03:01]} 8. Bg2 {[%clk 0:03:00]}  O-O {[%clk 0:03:02]} 9. O-O {[%clk 0:03:00]}  Rb8 {[%clk 0:03:02]} 10. a4 {[%clk 0:02:59]}  a6 {[%clk 0:03:02]} 11. Nd5 {[%clk 0:03:00]}  b5 {[%clk 0:02:59]} 12. axb5 {[%clk 0:03:00]}  axb5 {[%clk 0:03:00]} 13. c3 {[%clk 0:03:00]}  b4 {[%clk 0:02:57]} 14. Nd4 {[%clk 0:02:59]}  Nxd4 {[%clk 0:02:53]} 15. cxd4 {[%clk 0:02:59]}  Bb7 {[%clk 0:02:48]} 16. Nxf6+ {[%clk 0:02:57]}  Bxf6 {[%clk 0:02:49]} 17. Be3 {[%clk 0:02:58]}  Ra8 {[%clk 0:02:40]} 18. Qd2 {[%clk 0:02:57]}  Qb6 {[%clk 0:02:32]} 19. f4 {[%clk 0:02:44]}  Bg7 {[%clk 0:02:29]} 20. e5 {[%clk 0:02:42]}  Bxg2 {[%clk 0:02:28]} 21. Kxg2 {[%clk 0:02:42]}  d5 {[%clk 0:02:21]} 22. Rfc1 {[%clk 0:02:37]}  e6 {[%clk 0:02:19]} 23. Qc2 {[%clk 0:02:23]}  Qb5 {[%clk 0:01:54]} 24. Kf2 {[%clk 0:02:09]}  h5 {[%clk 0:01:51]} 25. Qe2 {[%clk 0:02:04]}  Qb7 {[%clk 0:01:48]} 26. h3 {[%clk 0:02:00]}  Rxa1 {[%clk 0:01:43]} 27. Rxa1 {[%clk 0:02:00]}  Rc8 {[%clk 0:01:43]} 28. Rc1 {[%clk 0:01:54]}  Rc6 {[%clk 0:01:32]} 29. Rxc6 {[%clk 0:01:51]}  Qxc6 {[%clk 0:01:33]} 30. g4 {[%clk 0:01:48]}  hxg4 {[%clk 0:01:30]} 31. hxg4 {[%clk 0:01:48]}  Bf8 {[%clk 0:01:24]} 32. Qd3 {[%clk 0:01:36]}  Qc8 {[%clk 0:01:20]} 33. b3 {[%clk 0:01:31]}  Be7 {[%clk 0:01:17]} 34. Kf3 {[%clk 0:01:27]}  Kg7 {[%clk 0:01:08]} 35. Bd2 {[%clk 0:01:15]}  Qh8 {[%clk 0:01:07]} 36. Kg2 {[%clk 0:01:14]}  Qa8 {[%clk 0:01:02]} 37. f5 {[%clk 0:01:01]}  Kh7 {[%clk 0:00:42]} 38. Qh3+ {[%clk 0:00:48]}  Kg8 {[%clk 0:00:40]} 39. fxg6 {[%clk 0:00:34]}  fxg6 {[%clk 0:00:41]} 40. Qh6 {[%clk 0:00:28]}  Qe8 {[%clk 0:00:36]} 41. Bg5 {[%clk 0:00:24]}  Bf8 {[%clk 0:00:36]} 42. Qh4 {[%clk 0:00:24]}  Qb5 {[%clk 0:00:34]} 43. Bf6 {[%clk 0:00:21]}  Qe2+ {[%clk 0:00:33]} 44. Kg1 {[%clk 0:00:21]}  Qd1+ {[%clk 0:00:27]} 45. Kg2 {[%clk 0:00:21]}  Qd2+ {[%clk 0:00:24]} 46. Kf1 {[%clk 0:00:20]}  Qf4+ {[%clk 0:00:16]} 47. Kg2 {[%clk 0:00:19]}  Qe4+ {[%clk 0:00:14]} 48. Kf1 {[%clk 0:00:19]}  Qd3+ {[%clk 0:00:13]} 49. Kg2 {[%clk 0:00:18]}  Qe2+ {[%clk 0:00:10]} 50. Kg1 {[%clk 0:00:18]}  Qe3+ {[%clk 0:00:09]} 51. Kg2 {[%clk 0:00:18]}  Qe4+ {[%clk 0:00:04]} 52. Kf1 {[%clk 0:00:18]}  Qf3+ {[%clk 0:00:04]} 53. Kg1 {[%clk 0:00:17]}  Qe3+ {[%clk 0:00:04]} 54. Kg2 {[%clk 0:00:17]}  Qe2+ {[%clk 0:00:02]} 1/2-1/2


[Site "https://www.chess.com"]

[Event "Titled Tuesday Blitz October 31 Early 2023"]
[White "Saydaliev, Saidakbar"]
[Black "Volkov, Maksim"]
[WhiteFideId "14203693"]
[BlackFideId "54123070"]
[WhiteElo "2777"]
[BlackElo "2657"]
[Result "1-0"]
[Round "7"]
[TimeControl "180+1"]
[Date "2023.10.31"]
[WhiteClock "0:00:38"]
[BlackClock "0:00:05"]
[Board "34"]

1. d4 {[%clk 0:03:00]}  d5 {[%clk 0:02:58]} 2. c4 {[%clk 0:03:00]}  e6 {[%clk 0:02:58]} 3. Nf3 {[%clk 0:02:59]}  Nf6 {[%clk 0:02:58]} 4. Nc3 {[%clk 0:02:58]}  c5 {[%clk 0:02:58]} 5. cxd5 {[%clk 0:02:58]}  cxd4 {[%clk 0:02:58]} 6. Qxd4 {[%clk 0:02:57]}  exd5 {[%clk 0:02:58]} 7. Bg5 {[%clk 0:02:55]}  Be7 {[%clk 0:02:58]} 8. e3 {[%clk 0:02:54]}  O-O {[%clk 0:02:58]} 9. Be2 {[%clk 0:02:41]}  h6 {[%clk 0:02:58]} 10. Bh4 {[%clk 0:02:40]}  Nc6 {[%clk 0:02:58]} 11. Qd1 {[%clk 0:02:40]}  Be6 {[%clk 0:02:56]} 12. O-O {[%clk 0:02:39]}  Qb6 {[%clk 0:02:55]} 13. Rb1 {[%clk 0:02:36]}  Rfd8 {[%clk 0:02:52]} 14. Nb5 {[%clk 0:02:31]}  Rac8 {[%clk 0:02:44]} 15. Nbd4 {[%clk 0:02:30]}  g5 {[%clk 0:02:33]} 16. Bg3 {[%clk 0:02:28]}  Ne4 {[%clk 0:02:33]} 17. Nxc6 {[%clk 0:02:10]}  bxc6 {[%clk 0:02:24]} 18. Nd4 {[%clk 0:02:05]}  c5 {[%clk 0:02:18]} 19. Nxe6 {[%clk 0:01:39]}  Qxe6 {[%clk 0:02:18]} 20. Bd3 {[%clk 0:01:32]}  Nxg3 {[%clk 0:01:56]} 21. hxg3 {[%clk 0:01:27]}  d4 {[%clk 0:01:49]} 22. exd4 {[%clk 0:01:00]}  Rxd4 {[%clk 0:01:45]} 23. Qc2 {[%clk 0:01:00]}  Qxa2 {[%clk 0:01:35]} 24. Rbc1 {[%clk 0:00:46]}  Rcd8 {[%clk 0:01:23]} 25. Bc4 {[%clk 0:00:45]}  Qa5 {[%clk 0:01:20]} 26. Qf5 {[%clk 0:00:44]}  Qc7 {[%clk 0:00:45]} 27. Qg6+ {[%clk 0:00:44]}  Kh8 {[%clk 0:00:45]} 28. Qxh6+ {[%clk 0:00:45]}  Kg8 {[%clk 0:00:45]} 29. Qg6+ {[%clk 0:00:45]}  Kh8 {[%clk 0:00:46]} 30. Bxf7 {[%clk 0:00:46]}  R4d6 {[%clk 0:00:39]} 31. Qh5+ {[%clk 0:00:42]}  Kg7 {[%clk 0:00:39]} 32. Bc4 {[%clk 0:00:42]}  Rh8 {[%clk 0:00:39]} 33. Qf7+ {[%clk 0:00:42]}  Kh6 {[%clk 0:00:39]} 34. Rfe1 {[%clk 0:00:43]}  Rh7 {[%clk 0:00:34]} 35. Re6+ {[%clk 0:00:38]}  Rxe6 {[%clk 0:00:34]} 36. Qxe6+ {[%clk 0:00:39]}  Kg7 {[%clk 0:00:05]} 37. Rd1 {[%clk 0:00:38]} 1-0


[Site "https://www.chess.com"]

[Event "Titled Tuesday Blitz October 31 Early 2023"]
[White "Sokolovsky, Yahli"]
[Black "Nurmanova, Alua"]
[WhiteFideId "2820242"]
[BlackFideId "13729390"]
[WhiteElo "2775"]
[BlackElo "2648"]
[Result "1-0"]
[Round "7"]
[TimeControl "180+1"]
[Date "2023.10.31"]
[WhiteClock "0:00:04"]
[BlackClock "0:00:03"]
[Board "35"]

1. b3 {[%clk 0:03:00]}  Nf6 {[%clk 0:02:59]} 2. Bb2 {[%clk 0:03:01]}  g6 {[%clk 0:02:59]} 3. Nf3 {[%clk 0:03:01]}  Bg7 {[%clk 0:02:59]} 4. c4 {[%clk 0:03:01]}  d6 {[%clk 0:02:58]} 5. g3 {[%clk 0:03:01]}  O-O {[%clk 0:02:58]} 6. Bg2 {[%clk 0:03:01]}  e5 {[%clk 0:02:59]} 7. Nc3 {[%clk 0:03:01]}  Nc6 {[%clk 0:02:57]} 8. d3 {[%clk 0:03:00]}  Re8 {[%clk 0:02:56]} 9. O-O {[%clk 0:02:59]}  e4 {[%clk 0:02:52]} 10. Nxe4 {[%clk 0:02:30]}  Nxe4 {[%clk 0:02:53]} 11. Bxg7 {[%clk 0:02:30]}  Nxf2 {[%clk 0:02:50]} 12. Rxf2 {[%clk 0:02:28]}  Kxg7 {[%clk 0:02:51]} 13. Qd2 {[%clk 0:02:26]}  Bf5 {[%clk 0:02:43]} 14. Raf1 {[%clk 0:02:24]}  Qd7 {[%clk 0:02:38]} 15. Ng5 {[%clk 0:02:09]}  h6 {[%clk 0:02:17]} 16. e4 {[%clk 0:01:44]}  hxg5 {[%clk 0:01:54]} 17. exf5 {[%clk 0:01:43]}  f6 {[%clk 0:01:55]} 18. fxg6 {[%clk 0:01:40]}  Rf8 {[%clk 0:01:47]} 19. Qc3 {[%clk 0:01:31]}  Ne5 {[%clk 0:01:45]} 20. Bxb7 {[%clk 0:01:32]}  Rae8 {[%clk 0:01:41]} 21. Be4 {[%clk 0:01:30]}  c6 {[%clk 0:01:35]} 22. d4 {[%clk 0:01:09]}  Nxg6 {[%clk 0:01:30]} 23. Qf3 {[%clk 0:00:52]}  Ne7 {[%clk 0:01:24]} 24. Bc2 {[%clk 0:00:50]}  d5 {[%clk 0:01:12]} 25. c5 {[%clk 0:00:48]}  Qh3 {[%clk 0:00:58]} 26. b4 {[%clk 0:00:44]}  f5 {[%clk 0:00:53]} 27. Qe3 {[%clk 0:00:42]}  f4 {[%clk 0:00:47]} 28. Qe5+ {[%clk 0:00:42]}  Kh6 {[%clk 0:00:47]} 29. gxf4 {[%clk 0:00:36]}  gxf4 {[%clk 0:00:47]} 30. Rg2 {[%clk 0:00:26]}  Qe3+ {[%clk 0:00:35]} 31. Qxe3 {[%clk 0:00:24]}  fxe3 {[%clk 0:00:36]} 32. Rxf8 {[%clk 0:00:18]}  Rxf8 {[%clk 0:00:36]} 33. Re2 {[%clk 0:00:18]}  Ng6 {[%clk 0:00:17]} 34. Bxg6 {[%clk 0:00:17]}  Kxg6 {[%clk 0:00:17]} 35. Rxe3 {[%clk 0:00:18]}  Rf6 {[%clk 0:00:12]} 36. Kg2 {[%clk 0:00:18]}  Kg5 {[%clk 0:00:11]} 37. Rg3+ {[%clk 0:00:15]}  Kh4 {[%clk 0:00:11]} 38. Rf3 {[%clk 0:00:16]}  Re6 {[%clk 0:00:11]} 39. Rf4+ {[%clk 0:00:16]}  Kg5 {[%clk 0:00:10]} 40. Kf3 {[%clk 0:00:16]}  Rh6 {[%clk 0:00:09]} 41. h4+ {[%clk 0:00:15]}  Kh5 {[%clk 0:00:06]} 42. a4 {[%clk 0:00:12]}  a6 {[%clk 0:00:06]} 43. Rf8 {[%clk 0:00:09]}  Kxh4 {[%clk 0:00:05]} 44. Ra8 {[%clk 0:00:10]}  Rf6+ {[%clk 0:00:06]} 45. Ke3 {[%clk 0:00:10]}  Re6+ {[%clk 0:00:07]} 46. Kd3 {[%clk 0:00:11]}  Re1 {[%clk 0:00:06]} 47. Rxa6 {[%clk 0:00:12]}  Rd1+ {[%clk 0:00:06]} 48. Kc3 {[%clk 0:00:12]}  Rc1+ {[%clk 0:00:06]} 49. Kd2 {[%clk 0:00:09]}  Rc4 {[%clk 0:00:06]} 50. b5 {[%clk 0:00:04]}  Rxd4+ {[%clk 0:00:06]} 51. Ke3 {[%clk 0:00:04]}  Re4+ {[%clk 0:00:07]} 52. Kf3 {[%clk 0:00:05]}  cxb5 {[%clk 0:00:05]} 53. axb5 {[%clk 0:00:06]}  Rb4 {[%clk 0:00:04]} 54. b6 {[%clk 0:00:04]}  Kg5 {[%clk 0:00:03]} 55. c6 {[%clk 0:00:03]}  d4 {[%clk 0:00:03]} 56. c7 {[%clk 0:00:03]}  Rc4 {[%clk 0:00:03]} 57. b7 {[%clk 0:00:03]}  Rxc7 {[%clk 0:00:02]} 58. b8=Q {[%clk 0:00:04]}  Rc3+ {[%clk 0:00:03]} 59. Ke4 {[%clk 0:00:04]}  Re3+ {[%clk 0:00:04]} 60. Kxd4 {[%clk 0:00:05]}  Kf5 {[%clk 0:00:03]} 61. Kxe3 {[%clk 0:00:04]} 1-0


[Site "https://www.chess.com"]

[Event "Titled Tuesday Blitz October 31 Early 2023"]
[White "Fecker, Noah"]
[Black "Bayramov, Zaur"]
[WhiteFideId "1334263"]
[BlackFideId "13405080"]
[WhiteElo "2757"]
[BlackElo "2646"]
[Result "1/2-1/2"]
[Round "7"]
[TimeControl "180+1"]
[Date "2023.10.31"]
[WhiteClock "0:00:05"]
[BlackClock "0:00:14"]
[Board "36"]

1. e4 {[%clk 0:03:00]}  d6 {[%clk 0:02:59]} 2. d4 {[%clk 0:03:00]}  Nf6 {[%clk 0:02:59]} 3. Nc3 {[%clk 0:03:00]}  e5 {[%clk 0:03:00]} 4. Nf3 {[%clk 0:02:57]}  Nbd7 {[%clk 0:02:59]} 5. Bc4 {[%clk 0:02:56]}  Be7 {[%clk 0:02:58]} 6. a4 {[%clk 0:02:57]}  O-O {[%clk 0:02:58]} 7. O-O {[%clk 0:02:57]}  c6 {[%clk 0:02:59]} 8. a5 {[%clk 0:02:56]}  Rb8 {[%clk 0:02:58]} 9. Re1 {[%clk 0:02:55]}  Qc7 {[%clk 0:02:57]} 10. h3 {[%clk 0:02:52]}  b5 {[%clk 0:02:57]} 11. axb6 {[%clk 0:02:52]}  axb6 {[%clk 0:02:58]} 12. Bf1 {[%clk 0:02:52]}  b5 {[%clk 0:02:56]} 13. b4 {[%clk 0:02:42]}  Re8 {[%clk 0:02:51]} 14. Bb2 {[%clk 0:02:38]}  Bf8 {[%clk 0:02:50]} 15. Bd3 {[%clk 0:02:34]}  Bb7 {[%clk 0:02:38]} 16. Ne2 {[%clk 0:02:28]}  Nb6 {[%clk 0:02:31]} 17. Ng3 {[%clk 0:02:21]}  g6 {[%clk 0:02:27]} 18. Qd2 {[%clk 0:02:19]}  Bg7 {[%clk 0:02:27]} 19. Ra7 {[%clk 0:02:16]}  Ra8 {[%clk 0:02:26]} 20. Rea1 {[%clk 0:02:14]}  Rxa7 {[%clk 0:02:22]} 21. Rxa7 {[%clk 0:02:13]}  Nfd7 {[%clk 0:02:22]} 22. dxe5 {[%clk 0:02:01]}  dxe5 {[%clk 0:02:21]} 23. Ra1 {[%clk 0:01:51]}  Na4 {[%clk 0:02:08]} 24. Bc1 {[%clk 0:01:48]}  Ndb6 {[%clk 0:02:02]} 25. Qe1 {[%clk 0:01:43]}  Qe7 {[%clk 0:01:52]} 26. Be3 {[%clk 0:01:37]}  Nd7 {[%clk 0:01:44]} 27. c4 {[%clk 0:01:32]}  Nb2 {[%clk 0:01:44]} 28. Bf1 {[%clk 0:01:27]}  Nxc4 {[%clk 0:01:43]} 29. Bxc4 {[%clk 0:01:24]}  bxc4 {[%clk 0:01:44]} 30. Ra7 {[%clk 0:01:24]}  Bc8 {[%clk 0:01:43]} 31. Qc3 {[%clk 0:01:22]}  Qd6 {[%clk 0:01:39]} 32. Qxc4 {[%clk 0:01:20]}  h6 {[%clk 0:01:38]} 33. Kh2 {[%clk 0:01:10]}  Bf8 {[%clk 0:01:35]} 34. Nh4 {[%clk 0:01:06]}  Qxb4 {[%clk 0:01:30]} 35. Qxc6 {[%clk 0:01:03]}  Qe7 {[%clk 0:01:18]} 36. Nxg6 {[%clk 0:00:54]}  fxg6 {[%clk 0:01:17]} 37. Qxg6+ {[%clk 0:00:55]}  Kh8 {[%clk 0:01:12]} 38. Bxh6 {[%clk 0:00:45]}  Qe6 {[%clk 0:01:05]} 39. Qxe6 {[%clk 0:00:38]}  Rxe6 {[%clk 0:01:06]} 40. Be3 {[%clk 0:00:32]}  Kg8 {[%clk 0:00:58]} 41. Nf5 {[%clk 0:00:29]}  Rc6 {[%clk 0:00:49]} 42. h4 {[%clk 0:00:23]}  Nf6 {[%clk 0:00:48]} 43. f3 {[%clk 0:00:20]}  Bxf5 {[%clk 0:00:48]} 44. exf5 {[%clk 0:00:20]}  e4 {[%clk 0:00:48]} 45. fxe4 {[%clk 0:00:18]}  Nxe4 {[%clk 0:00:48]} 46. g4 {[%clk 0:00:13]}  Rc2+ {[%clk 0:00:47]} 47. Kh3 {[%clk 0:00:13]}  Rc3 {[%clk 0:00:47]} 48. g5 {[%clk 0:00:12]}  Rxe3+ {[%clk 0:00:46]} 49. Kg4 {[%clk 0:00:12]}  Nd6 {[%clk 0:00:28]} 50. f6 {[%clk 0:00:11]}  Re4+ {[%clk 0:00:26]} 51. Kh5 {[%clk 0:00:10]}  Nf5 {[%clk 0:00:26]} 52. g6 {[%clk 0:00:07]}  Nxh4 {[%clk 0:00:17]} 53. g7 {[%clk 0:00:05]}  Bxg7 {[%clk 0:00:16]} 54. Rxg7+ {[%clk 0:00:04]}  Kf8 {[%clk 0:00:16]} 55. Rg4 {[%clk 0:00:04]}  Rxg4 {[%clk 0:00:13]} 56. Kxg4 {[%clk 0:00:05]}  Kf7 {[%clk 0:00:13]} 57. Kxh4 {[%clk 0:00:05]}  Kxf6 {[%clk 0:00:14]} 1/2-1/2


[Site "https://www.chess.com"]